bitfinex-derivatives/quotes_SOLF0:USTF0_20241024
["timestamp","ask_amount","ask_price","bid_price","bid_amount"]
[1729803671534,4.14,177.3,177.29,2.8217]
[1729803671731,4.14,177.3,177.22,1.41158766]
[1729803672238,2.8221,177.27,177.23,2.8226]
[1729803672533,4.14,177.26,177.23,2.8226]
[1729803672732,4.14,177.25,177.23,2.8226]
[1729803672927,4.14,177.25,177.24,2.8225]
[1729803676938,60.94,177.31,177.22,1.41158766]
[1729803677133,6.9616,177.3,177.26,2.8222]
[1729803677338,60.94,177.31,177.22,1.41158766]
[1729803677538,4.14,177.3,177.22,1.41158766]
[1729803678739,2.8218,177.29,177.25,2.8223]
[1729803678937,2.8218,177.29,177.22,1.41158766]
[1729803679733,2.8218,177.29,177.25,2.8223]
[1729803679940,4.14,177.3,177.25,2.8223]
[1729803680142,6.9616,177.3,177.25,2.8223]
[1729803681240,6.9616,177.3,177.25,10.62372546]
[1729803681241,14.76302546,177.3,177.25,10.62372546]
[1729803681537,2.8218,177.29,177.25,10.62372546]
[1729803682445,10.62332546,177.28,177.23,7.80142546]
[1729803682859,10.62332546,177.28,177.24,2.8225]
[1729803683447,7.80142546,177.28,177.24,7.80142546]
[1729803683855,2.8218,177.29,177.24,7.80142546]
[1729803684253,2.8218,177.29,177.25,2.8222]
[1729803685355,4.14,177.3,177.24,7.80142546]
[1729803685562,14.76302546,177.3,177.26,2.8221]
[1729803686853,11.94142546,177.3,177.26,2.8221]
[1729803687057,2.8218,177.29,177.26,2.8221]
[1729803687257,11.94142546,177.3,177.24,7.80142546]
[1729803687453,14.76312546,177.3,177.26,7.80142546]
[1729803689255,14.76312546,177.3,177.27,2.822]
[1729803690067,6.9617,177.3,177.27,2.822]
[1729803694569,4.14,177.29,177.27,2.822]
[1729803698566,4.14,177.29,177.28,5.16858496]
[1729803699376,4.14,177.29,177.27,2.822]
[1729803701978,4.14,177.29,177.28,1.41125769]
[1729803703274,4.14,177.29,177.27,2.822]
[1729803705779,4.14,177.29,177.28,1.41125733]
[1729803706081,4.14,177.29,177.28,6.58806025]
[1729803706276,4.14,177.29,177.28,14.87094492]
[1729803707083,4.14,177.29,177.28,6.58806025]
[1729803707475,4.14,177.29,177.28,1.41125733]
[1729803709181,4.14,177.29,177.28,2.82251225]
[1729803710185,4.14,177.29,177.28,1.41125733]
[1729803710880,2.8225,177.25,177.21,2.8229]
[1729803711183,7.80142546,177.23,177.21,2.8229]
[1729803711384,4.14,177.22,177.21,2.8229]
[1729803711983,11.94142546,177.22,177.17,15.53040876]
[1729803713285,11.94142546,177.22,177.19,2.8232]
[1729803715388,14.76432546,177.22,177.18,2.8234]
[1729803715875,6.9629,177.22,177.2,13.48143098]
[1729803716081,10.62442546,177.21,177.2,13.48143098]
[1729803716684,10.62442546,177.21,177.16,2.8237]
[1729803717583,10.62442546,177.21,177.17,2.8236]
[1729803717884,7.80142546,177.19,177.09,15.53040876]
[1729803718087,4.14,177.18,177.15,2.8239]
[1729803724291,4.14,177.18,177.16,5.17305424]
[1729803724595,4.14,177.18,177.16,13.44994102]
[1729803724892,4.14,177.18,177.15,2.8239]
[1729803727191,4.14,177.17,177.15,2.8239]
[1729803728396,4.14,177.17,177.16,2.8238]
[1729803729100,4.14,177.17,177.16,7.99782713]
[1729803729691,4.14,177.17,177.16,2.8238]
[1729803730297,4.14,177.17,177.15,2.8239]
[1729803734190,4.14,177.16,177.15,2.8239]
[1729803735606,4.14,177.16,177.15,7.99389273]
[1729803736905,4.14,177.16,177.15,2.8239]
[1729803738998,4.14,177.16,177.15,7.99419988]
[1729803740906,2.8234,177.19,177.15,7.99419988]
[1729803741101,11.94142546,177.18,177.15,7.99419988]
[1729803741503,7.80142546,177.17,177.15,7.99419988]
[1729803741699,7.80142546,177.17,177.15,2.8239]
[1729803742506,4.14,177.16,177.15,2.8239]
[1729803742804,4.14,177.16,177.12,7.80142546]
[1729803742805,7.80142546,177.17,177.16,2.8238]
[1729803743004,11.94142546,177.17,177.16,2.8238]
[1729803743197,7.80142546,177.17,177.16,2.8238]
[1729803743401,11.94142546,177.17,177.16,2.8238]
[1729803743906,7.80142546,177.17,177.16,2.8238]
[1729803744103,11.94142546,177.17,177.16,2.8238]
[1729803745703,7.80142546,177.17,177.16,2.8238]
[1729803745901,11.94142546,177.17,177.16,2.8238]
[1729803750611,7.80142546,177.19,177.17,2.8235]
[1729803750908,1.5997,177.27,177.18,7.80142546]
[1729803751119,4.14,177.26,177.21,2.823]
[1729803751308,4.14,177.26,177.19,7.80142546]
[1729803751309,7.80142546,177.25,177.19,7.80142546]
[1729803752123,10.62382546,177.25,177.21,2.8229]
[1729803752318,4.14,177.24,177.21,2.8229]
[1729803752515,1.5997,177.27,177.19,7.80142546]
[1729803752711,1.5997,177.27,177.21,7.80142546]
[1729803752712,11.94142546,177.26,177.21,7.80142546]
[1729803753224,11.94142546,177.26,177.25,2.8224]
[1729803753718,7.80142546,177.28,177.22,7.80142546]
[1729803753915,4.14,177.27,177.26,2.8221]
[1729803754221,4.14,177.27,177.24,7.80142546]
[1729803754426,60.96,177.33,177.26,7.80142546]
[1729803754628,4.14,177.32,177.27,7.80142546]
[1729803754920,4.14,177.32,177.3,2.8214]
[1729803755422,60.96,177.33,177.27,7.80142546]
[1729803755626,4.14,177.31,177.27,7.80142546]
[1729803756225,4.14,177.31,177.3,2.8216]
[1729803758827,11.94142546,177.31,177.3,2.8216]
[1729803759223,11.94142546,177.31,177.25,7.80142546]
[1729803759423,7.80142546,177.29,177.25,7.80142546]
[1729803759729,7.80142546,177.29,177.24,1.5481]
[1729803759923,4.14,177.31,177.24,1.5481]
[1729803760123,4.14,177.31,177.3,2.8216]
[1729803761929,60.96,177.33,177.27,7.80142546]
[1729803762128,4.14,177.33,177.31,7.80142546]
[1729803763026,7.80142546,177.36,177.34,2.8209]
[1729803763230,4.14,177.35,177.34,2.8209]
[1729803764028,11.94142546,177.4,177.34,7.80142546]
[1729803764233,11.94142546,177.4,177.35,7.80142546]
[1729803764631,11.94142546,177.4,177.38,2.8202]
[1729803764933,11.94142546,177.4,177.35,7.80142546]
[1729803765231,7.80142546,177.39,177.34,7.80142546]
[1729803765629,7.80142546,177.39,177.38,2.8202]
[1729803767233,7.80142546,177.39,177.36,2.8205]
[1729803767431,7.80142546,177.37,177.32,7.80142546]
[1729803767945,4.14,177.4,177.38,2.8203]
[1729803768129,7.80142546,177.39,177.38,2.8203]
[1729803769039,4.14,177.4,177.34,7.80142546]
[1729803769337,4.14,177.4,177.37,7.80142546]
[1729803770335,4.14,177.4,177.39,2.8201]
[1729803771231,4.14,177.41,177.4,2.8198]
[1729803772333,11.94142546,177.41,177.4,2.8198]
[1729803772835,11.94142546,177.41,177.34,3.0828]
[1729803772836,4.14,177.41,177.34,3.0828]
[1729803773036,4.14,177.41,177.39,2.82]
[1729803773238,7.80142546,177.4,177.39,2.82]
[1729803774138,4.14,177.41,177.34,10.88422546]
[1729803774326,4.14,177.41,177.4,2.82]
[1729803774533,11.94142546,177.41,177.4,2.82]
[1729803774936,11.94142546,177.41,177.34,3.0828]
[1729803775141,11.94142546,177.41,177.34,1.5286]
[1729803775142,7.80142546,177.37,177.34,1.5286]
[1729803775841,7.80142546,177.38,177.34,1.5286]
[1729803776240,4.14,177.41,177.34,1.5286]
[1729803776540,7.80142546,177.38,177.34,1.5286]
[1729803777245,7.80142546,177.38,177.37,2.8203]
[1729803780239,4.14,177.41,177.37,2.8203]
[1729803780442,7.80142546,177.38,177.37,2.8203]
[1729803781347,60.94,177.42,177.4,2.8199]
[1729803781546,11.94142546,177.41,177.34,1.5286]
[1729803781844,4.14,177.41,177.38,2.8202]
[1729803782039,7.80142546,177.4,177.35,7.80142546]
[1729803782949,7.80142546,177.4,177.39,2.8201]
[1729803785149,2.8191,177.46,177.41,2.8197]
[1729803785352,7.80142546,177.43,177.41,2.8197]
[1729803785846,2.8192,177.45,177.42,2.8196]
[1729803786052,7.80142546,177.43,177.42,2.8196]
[1729803787942,7.80142546,177.43,177.35,7.80142546]
[1729803788148,4.12,177.44,177.39,2.82]
[1729803788341,7.80142546,177.4,177.35,7.80142546]
[1729803788549,11.92142546,177.4,177.35,7.80142546]
[1729803788737,11.92142546,177.4,177.39,2.8201]
[1729803789947,11.92142546,177.4,177.21,16.94]
[1729803790149,4.12,177.4,177.36,2.8205]
[1729803790447,7.80142546,177.38,177.33,7.80142546]
[1729803790651,7.80142546,177.34,177.27,4.12]
[1729803790849,7.80142546,177.34,177.29,7.80142546]
[1729803791245,4.12,177.36,177.35,2.8208]
[1729803791452,11.92142546,177.36,177.35,2.8208]
[1729803799248,4.12,177.36,177.35,2.8208]
[1729803799549,11.92142546,177.36,177.35,2.8208]
[1729803800949,4.12,177.36,177.35,2.8208]
[1729803804654,2.8195,177.44,177.4,2.82]
[1729803804851,7.80142546,177.44,177.39,7.80142546]
[1729803805046,4.12,177.43,177.39,7.80142546]
[1729803805353,4.12,177.43,177.41,2.8198]
[1729803805949,4.12,177.43,177.39,7.80142546]
[1729803806154,4.12,177.43,177.42,2.8197]
[1729803809061,11.92142546,177.43,177.42,2.8197]
[1729803812154,4.12,177.43,177.42,2.8197]
[1729803812451,11.92142546,177.43,177.42,2.8197]
[1729803815655,4.12,177.43,177.42,2.8197]
[1729803815960,11.92142546,177.43,177.42,2.8197]
[1729803817864,11.92142546,177.43,177.33,1.41050398]
[1729803818055,7.80142546,177.39,177.38,2.8202]
[1729803818362,11.92142546,177.39,177.38,2.8202]
[1729803819360,4.12,177.39,177.38,2.8202]
[1729803822162,11.92142546,177.39,177.32,1.5648]
[1729803822463,7.80142546,177.38,177.33,7.80142546]
[1729803822658,7.80142546,177.39,177.33,7.80142546]
[1729803822860,4.12,177.47,177.42,2.8196]
[1729803823052,7.80142546,177.43,177.34,4.12]
[1729803823253,14.74092546,177.43,177.38,1.4105089]
[1729803823862,14.74092546,177.43,177.39,2.82]
[1729803825464,10.62152546,177.4,177.36,2.8206]
[1729803825669,10.62152546,177.4,177.34,7.80142546]
[1729803825670,4.12,177.39,177.34,7.80142546]
[1729803826061,4.12,177.39,177.37,2.8205]
[1729803826266,4.12,177.39,177.36,7.80142546]
[1729803826668,4.12,177.39,177.38,2.8203]
[1729803827368,4.5902,177.5,177.38,2.8203]
[1729803827369,4.12,177.48,177.38,22.67030923]
[1729803827572,4.12,177.48,177.45,7.80142546]
[1729803827765,4.12,177.48,177.43,7.80142546]
[1729803827766,2.8191,177.46,177.43,7.80142546]
[1729803827971,4.12,177.48,177.44,7.80142546]
[1729803828266,4.12,177.48,177.46,7.80142546]
[1729803828975,4.12,177.48,177.39,1.4936]
[1729803829159,4.12,177.48,177.44,7.80142546]
[1729803830259,4.12,177.48,177.39,1.4936]
[1729803830260,136.2790202,177.62,177.4,4.12]
[1729803830463,7.80142546,177.52,177.46,7.80142546]
[1729803830671,5.08046545,177.51,177.46,7.80142546]
[1729803830871,4.12,177.51,177.46,7.80142546]
[1729803831078,2.8186,177.49,177.45,10.62052546]
[1729803832973,2.819,177.47,177.44,2.8194]
[1729803833168,6.939,177.47,177.44,2.8194]
[1729803833374,4.12,177.47,177.42,7.80142546]
[1729803834168,4.12,177.47,177.43,2.8194]
[1729803834368,4.12,177.47,177.42,7.80142546]
[1729803835176,4.12,177.47,177.45,2.8192]
[1729803838576,7.80142546,177.46,177.45,2.8192]
[1729803839075,7.80142546,177.46,177.4,7.80142546]
[1729803839270,7.80142546,177.45,177.43,2.8194]
[1729803841574,6.939,177.47,177.43,2.8194]
[1729803841777,7.80142546,177.45,177.43,2.8194]
[1729803842278,6.939,177.47,177.43,2.8194]
[1729803842480,7.80142546,177.45,177.43,2.8194]
[1729803844181,6.939,177.47,177.43,2.8194]
[1729803844385,7.80142546,177.45,177.43,2.8194]
[1729803846287,7.80142546,177.46,177.43,2.8194]
[1729803846781,4.12,177.47,177.41,7.80142546]
[1729803846985,11.92142546,177.47,177.41,7.80142546]
[1729803847478,11.92142546,177.47,177.44,2.8192]
[1729803847878,4.12,177.47,177.44,2.8192]
[1729803848077,7.80142546,177.46,177.44,2.8192]
[1729803848878,4.12,177.47,177.45,2.8191]
[1729803849978,4.12,177.47,177.39,1.4936]
[1729803850176,4.12,177.47,177.44,2.8193]
[1729803852382,11.92142546,177.47,177.44,2.8193]
[1729803852588,11.92142546,177.47,177.42,7.80142546]
[1729803852589,14.74042546,177.47,177.42,10.62092546]
[1729803853095,11.92142546,177.47,177.42,7.80142546]
[1729803853284,14.74032546,177.47,177.42,7.80142546]
[1729803854179,14.74032546,177.47,177.43,2.8195]
[1729803854589,2.819,177.46,177.43,2.8195]
[1729803854889,2.819,177.46,177.45,1.41044393]
[1729803856781,10.62042546,177.46,177.45,1.41044393]
[1729803858285,2.819,177.46,177.45,1.41044393]
[1729803858487,10.62042546,177.46,177.45,1.41044393]
[1729803859785,7.80142546,177.46,177.41,10.62122546]
[1729803859986,2.8193,177.45,177.41,10.62122546]
[1729803860387,2.8193,177.45,177.42,5.1661449]
[1729803861496,2.8193,177.45,177.41,10.62122546]
[1729803861785,4.12,177.47,177.32,2.81482204]
[1729803861992,10.62112546,177.42,177.39,2.8201]
[1729803862191,14.74112546,177.42,177.39,2.8201]
[1729803863589,2.8202,177.39,177.36,2.8206]
[1729803863791,1.5618,177.46,177.26,2.60827813]
[1729803863792,11.92142546,177.38,177.26,2.60827813]
[1729803863998,11.92142546,177.37,177.3,12.03280527]
[1729803864292,4.12,177.37,177.3,12.03280527]
[1729803864496,7.80142546,177.36,177.3,12.03280527]
[1729803864790,7.80142546,177.34,177.3,4.23137981]
[1729803864993,7.80142546,177.32,177.3,4.23137981]
[1729803865300,11.92142546,177.32,177.3,4.23137981]
[1729803865697,14.74282546,177.32,177.3,4.23137981]
[1729803866083,11.92142546,177.32,177.3,4.23137981]
[1729803866589,11.92142546,177.32,177.27,7.80142546]
[1729803866895,4.12,177.32,177.28,2.8218]
[1729803867296,4.12,177.32,177.28,10.62322546]
[1729803868195,4.12,177.32,177.29,2.8217]
[1729803868699,11.92142546,177.32,177.22,1.6077]
[1729803868888,11.92142546,177.32,177.28,2.8219]
[1729803870398,11.92142546,177.32,177.27,7.80142546]
[1729803870596,11.92142546,177.32,177.29,2.8217]
[1729803871196,14.74272546,177.32,177.28,2.8219]
[1729803872597,6.9413,177.32,177.28,10.62332546]
[1729803875799,2.8218,177.29,177.26,2.8222]
[1729803875998,4.14,177.28,177.26,7.80142546]
[1729803876296,4.14,177.28,177.27,7.80142546]
[1729803877493,4.14,177.28,177.27,10.62352546]
[1729803877999,4.14,177.28,177.26,7.80142546]
[1729803879092,4.14,177.28,177.26,10.62362546]
[1729803879696,1.5717,177.35,177.27,7.80142546]
[1729803879903,64.0829,177.36,177.34,7.80142546]
[1729803880202,4.14,177.35,177.34,7.80142546]
[1729803881398,6.9609,177.35,177.34,7.80142546]
[1729803882595,6.9609,177.35,177.34,11.46989434]
[1729803883607,6.9609,177.35,177.34,10.05894477]
[1729803888802,6.9609,177.35,177.34,7.80142546]
[1729803896805,2.821,177.34,177.24,4.37815897]
[1729803897007,2.821,177.34,177.32,7.80142546]
[1729803897209,4.14,177.35,177.32,7.80142546]
[1729803897405,6.9608,177.35,177.32,10.62272546]
[1729803897609,6.9608,177.35,177.34,7.80142546]
[1729803898113,4.14,177.35,177.34,10.62232546]
[1729803899006,4.12,177.35,177.34,10.62232546]
[1729803900508,60.92,177.36,177.35,2.8208]
[1729803900711,65.04,177.36,177.35,10.62222546]
[1729803903613,60.92,177.36,177.35,10.62222546]
[1729803903813,65.04,177.36,177.35,10.62222546]
[1729803904116,65.04,177.36,177.35,12.03298132]
[1729803904803,65.04,177.36,177.35,10.62222546]
[1729803908704,4.12,177.36,177.35,10.62222546]
[1729803912417,4.12,177.36,177.35,2.8208]
[1729803912716,4.12,177.36,177.35,10.62222546]
[1729803921818,4.12,177.36,177.35,12.03296254]
[1729803922526,4.12,177.36,177.35,10.62222546]
[1729803928827,4.12,177.36,177.35,15.80049499]
[1729803929124,4.12,177.36,177.35,24.08572624]
[1729803929528,4.12,177.36,177.35,10.62222546]
[1729803932730,4.12,177.36,177.35,10.05861724]
[1729803932933,4.12,177.36,177.35,11.4693621]
[1729803933132,4.12,177.36,177.35,3.66793664]
[1729803933726,4.12,177.36,177.35,7.80142546]
[1729803940827,4.12,177.36,177.35,10.62222546]
[1729803941929,4.12,177.36,177.35,24.09435936]
[1729803942134,4.12,177.36,177.35,25.50508622]
[1729803942436,4.12,177.36,177.35,27.7622492]
[1729803943629,4.12,177.36,177.35,19.47170526]
[1729803944031,4.12,177.36,177.35,14.2901153]
[1729803944229,4.12,177.36,177.35,27.76713558]
[1729803944538,4.12,177.36,177.35,15.8056948]
[1729803944736,4.12,177.36,177.35,10.62222546]
[1729803946336,4.12,177.36,177.35,2.8208]
[1729803948442,4.12,177.36,177.35,16.29872747]
[1729803948942,4.12,177.36,177.35,2.8208]
[1729803952940,4.12,177.36,177.34,2.8209]
[1729803961448,4.12,177.36,177.35,5.18810778]
[1729803962053,4.12,177.36,177.35,13.48908023]
[1729803962750,4.12,177.36,177.35,8.30097245]
[1729803963053,4.12,177.36,177.34,2.8209]
[1729803967157,1.5935,177.4,177.39,2.8201]
[1729803967348,4.12,177.41,177.3,7.289]
[1729803967751,63.7196,177.43,177.39,2.8201]
[1729803967959,4.12,177.42,177.39,2.8201]
[1729803968458,2.82,177.41,177.37,2.8203]
[1729803968757,4.12,177.42,177.3,1.6461]
[1729803969661,2.8199,177.41,177.3,1.6461]
[1729803970461,2.8199,177.41,177.36,2.8205]
[1729803970960,2.8199,177.41,177.3,1.6461]
[1729803971853,2.8199,177.41,177.33,2.8211]
[1729803972052,2.8199,177.41,177.3,1.6461]
[1729803972260,2.8199,177.41,177.35,3.66800478]
[1729803972461,2.82,177.4,177.36,2.8205]
[1729803973762,4.12,177.42,177.35,1.41077107]
[1729803974355,4.12,177.42,177.37,8.31132166]
[1729803974773,2.82,177.4,177.37,16.3262977]
[1729803975160,2.82,177.4,177.38,13.5058977]
[1729803976060,2.82,177.4,177.37,2.8204]
[1729803978164,4.12,177.42,177.36,2.8205]
[1729803978165,2.8202,177.39,177.36,2.8205]
[1729803978459,4.12,177.38,177.36,2.8205]
[1729803978860,4.12,177.38,177.3,1.6461]
[1729803980466,4.12,177.38,177.36,2.8205]
[1729803982969,4.12,177.38,177.28,1.5876]
[1729803983267,7.3289,177.38,177.27,4.23231322]
[1729803983459,2.8209,177.35,177.27,4.23231322]
[1729803983661,4.12,177.34,177.27,4.23231322]
[1729803983871,1.5615,177.37,177.27,4.23231322]
[1729803984168,2.8211,177.33,177.27,4.23231322]
[1729803984364,4.12,177.32,177.27,4.23231322]
[1729803984766,4.12,177.32,177.29,2.8216]
[1729803985375,2.8211,177.33,177.29,2.8216]
[1729803985576,4.12,177.32,177.29,2.8216]
[1729803986078,6.9413,177.32,177.28,2.8219]
[1729803986271,4.12,177.32,177.25,4.23231322]
[1729803986675,4.12,177.32,177.28,13.51176395]
[1729803987171,4.12,177.32,177.3,1.41102414]
[1729803987476,4.12,177.32,177.29,1.41102414]
[1729803988761,4.12,177.32,177.31,2.8214]
[1729803990774,4.12,177.32,177.24,1.5949]
[1729803991872,4.12,177.32,177.3,2.8216]
[1729803994569,2.8216,177.31,177.24,1.5949]
[1729803994876,2.8216,177.31,177.2,2.9864]
[1729803995281,2.8218,177.29,177.2,2.9864]
[1729803995477,4.12,177.28,177.2,2.9864]
[1729803996174,4.12,177.28,177.25,2.8222]
[1729803997474,4.12,177.28,177.26,2.8222]
[1729803999281,4.12,177.28,177.27,1.41112583]
[1729803999982,4.12,177.28,177.26,2.8222]
[1729804000783,4.12,177.28,177.27,13.47308933]
[1729804002280,4.06,177.28,177.27,13.47308933]
[1729804004783,6.8819,177.28,177.24,2.8224]
[1729804006492,4.06,177.28,177.24,2.8224]
[1729804006697,2.8222,177.27,177.24,2.8225]
[1729804006897,2.8222,177.27,177.19,1.5408]
[1729804007787,2.8222,177.27,177.23,2.8226]
[1729804009900,4.06,177.28,177.19,1.5408]
[1729804011106,2.8221,177.27,177.23,2.8226]
[1729804013800,2.8221,177.27,177.24,13.47985023]
[1729804014505,2.8221,177.27,177.23,2.8226]
[1729804015707,2.8221,177.27,177.24,1.41124947]
[1729804016303,2.8221,177.27,177.23,2.8226]
[1729804016909,2.8221,177.27,177.23,2.7626]
[1729804017610,2.8221,177.27,177.24,14.85415092]
[1729804018104,2.8221,177.27,177.24,1.41125545]
[1729804018310,2.8221,177.27,177.23,2.7626]
[1729804021506,6.8819,177.28,177.21,2.8229]
[1729804021707,60.92,177.35,177.19,1.5408]
[1729804021708,4.12,177.27,177.19,1.5408]
[1729804021912,60.92,177.35,177.19,1.5408]
[1729804021913,4.12,177.26,177.19,1.5408]
[1729804022109,4.12,177.25,177.19,1.5408]
[1729804022609,4.12,177.25,177.24,2.8225]
[1729804026209,4.12,177.25,177.24,7.99100325]
[1729804026405,4.12,177.25,177.24,16.26060845]
[1729804026806,4.12,177.25,177.24,7.99100325]
[1729804027012,4.12,177.25,177.24,2.8225]
[1729804033119,4.12,177.25,177.24,4.23373165]
[1729804033514,4.12,177.25,177.24,2.8225]
[1729804035619,4.12,177.25,177.24,7.99229878]
[1729804035818,4.12,177.25,177.24,17.67521305]
[1729804036616,4.12,177.25,177.24,11.09417805]
[1729804036922,4.12,177.25,177.24,2.8225]
[1729804038215,60.92,177.35,177.19,1.5408]
[1729804038416,2.8212,177.33,177.19,1.5408]
[1729804038621,4.12,177.32,177.19,1.5408]
[1729804040119,4.12,177.32,177.29,2.8217]
[1729804040519,4.12,177.32,177.25,2.81157765]
[1729804040820,60.92,177.35,177.25,2.81157765]
[1729804041027,4.12,177.34,177.24,1.41123622]
[1729804041222,4.12,177.34,177.21,4.12]
[1729804041523,6.9411,177.34,177.29,2.8216]
[1729804042527,4.12,177.33,177.31,2.8214]
[1729804043324,4.12,177.33,177.32,5.16979878]
[1729804046625,4.12,177.33,177.31,2.8214]
[1729804047733,4.12,177.33,177.32,1.41082813]
[1729804048030,4.12,177.33,177.32,6.58017372]
[1729804048531,4.12,177.33,177.32,5.16934559]
[1729804048733,4.12,177.33,177.31,2.8214]
[1729804049722,4.12,177.33,177.3,2.8215]
[1729804050230,4.12,177.33,177.32,1.41085835]
[1729804051134,4.12,177.33,177.32,6.5910282]
[1729804051531,4.12,177.33,177.32,14.87929997]
[1729804054035,60.92,177.35,177.32,14.87929997]
[1729804054236,4.12,177.34,177.32,14.87929997]
[1729804054732,4.12,177.34,177.33,2.821]
[1729804055638,4.12,177.34,177.33,4.23185835]
[1729804055934,4.12,177.34,177.33,17.6925086]
[1729804056930,4.12,177.34,177.33,4.23185835]
[1729804058133,4.12,177.34,177.33,2.821]
[1729804058733,4.12,177.34,177.28,2.76700428]
[1729804058734,4.12,177.36,177.28,2.76700428]
[1729804059040,4.12,177.36,177.33,13.45715137]
[1729804059538,4.12,177.36,177.33,5.17582745]
[1729804059736,4.12,177.36,177.3,2.80956789]
[1729804059935,4.12,177.37,177.35,2.8207]
[1729804060840,4.12,177.37,177.3,2.77963249]
[1729804061140,4.5928,177.43,177.29,9.7635]
[1729804061342,4.12,177.42,177.29,12.52479719]
[1729804061535,4.12,177.42,177.37,2.8204]
[1729804061735,2.8199,177.41,177.37,2.8204]
[1729804062136,4.12,177.42,177.29,12.52479719]
[1729804062338,4.12,177.42,177.39,2.8201]
[1729804062738,4.12,177.42,177.38,2.8203]
[1729804063139,4.12,177.42,177.39,6.58379543]
[1729804063545,4.12,177.42,177.39,9.40389543]
[1729804064339,4.12,177.42,177.39,4.23059777]
[1729804064748,4.12,177.42,177.39,2.8201]
[1729804065543,4.12,177.41,177.39,2.8201]
[1729804066046,4.12,177.41,177.38,2.8202]
[1729804066741,4.12,177.41,177.32,1.6176]
[1729804066948,4.12,177.41,177.39,2.8201]
[1729804068147,4.12,177.41,177.32,1.6176]
[1729804068448,4.12,177.41,177.39,2.8201]
[1729804071247,4.12,177.41,177.32,1.6176]
[1729804072446,4.12,177.41,177.33,1.41055629]
[1729804073239,2.82,177.4,177.36,2.8205]
[1729804075449,4.12,177.41,177.38,2.8202]
[1729804075651,4.12,177.41,177.33,1.41055629]
[1729804075951,6.9399,177.41,177.37,2.8204]
[1729804076845,4.12,177.41,177.33,1.41055629]
[1729804077448,4.12,177.41,177.37,2.8204]
[1729804077646,4.12,177.41,177.32,1.6176]
[1729804078244,4.12,177.41,177.38,2.8203]
[1729804078555,1.6157,177.48,177.33,4.1]
[1729804078745,4.1,177.47,177.33,4.1]
[1729804078944,1.6157,177.48,177.33,4.1]
[1729804079146,4.1,177.47,177.33,9.7421]
[1729804079347,4.1,177.47,177.37,2.8204]
[1729804079554,4.1,177.47,177.37,4.1]
[1729804079850,6.9189,177.47,177.37,4.1]
[1729804080046,6.9189,177.47,177.41,2.8197]
[1729804080353,4.1,177.48,177.37,4.1]
[1729804080556,4.1,177.48,177.42,2.8196]
[1729804080855,6.9188,177.48,177.42,2.8196]
[1729804081056,4.1,177.48,177.42,2.8196]
[1729804081556,2.819,177.47,177.41,2.8198]
[1729804082455,2.819,177.47,177.42,2.8195]
[1729804083052,6.9187,177.48,177.42,2.8195]
[1729804083854,4.1,177.48,177.38,14.09126262]
[1729804084156,4.1,177.48,177.38,11.27106262]
[1729804084347,4.1,177.48,177.39,2.83811568]
[1729804084956,4.1,177.48,177.4,13.42279862]
[1729804085255,2.8192,177.45,177.4,16.24269862]
[1729804085456,4.1,177.48,177.4,13.42279862]
[1729804085657,4.1,177.48,177.38,8.26076262]
[1729804085957,4.1,177.48,177.38,11.08096262]
[1729804085958,2.8195,177.44,177.38,11.08096262]
[1729804086152,6.9195,177.44,177.38,8.26076262]
[1729804086561,6.9195,177.44,177.39,2.8191038]
[1729804087150,6.9195,177.44,177.4,13.42436717]
[1729804087754,6.9195,177.44,177.39,2.8201]
[1729804088257,6.9195,177.44,177.39,5.58986455]